bitfinex/quotes_SOLUSD_20250717
["timestamp","ask_amount","ask_price","bid_price","bid_amount"]
[1752736456975,42.77419616,172.21,172.2,0.03]
[1752736457348,43.48419616,172.21,172.2,0.03]
[1752736459264,11.48419616,172.21,172.2,0.03]
[1752736459563,43.48419616,172.21,172.2,0.03]
[1752736459971,43.48419616,172.21,172.18,0.03]
[1752736460165,22.46201642,172.2,172.19,1e-08]
[1752736460482,28.99704887,172.2,172.15,0.1]
[1752736460783,4.96733245,172.16,172.15,0.1]
[1752736460990,42.77588263,172.16,172.15,0.1]
[1752736461585,4.96733245,172.18,172.15,0.79]
[1752736461755,4.96733245,172.18,172.16,0.69]
[1752736461756,36.96733245,172.18,172.16,0.69]
[1752736462161,32.0,172.18,172.17,0.69]
[1752736462680,32.0,172.19,172.16,8.1192]
[1752736462852,36.96733245,172.19,172.16,8.8092]
[1752736463759,4.96733245,172.18,172.15,0.1]
[1752736463956,36.96733245,172.17,172.15,0.79]
[1752736464175,4.96733245,172.16,172.15,0.1]
[1752736464968,5.63733245,172.16,172.15,0.1]
[1752736465372,11.44588263,172.16,172.15,0.1]
[1752736466159,31.98,172.16,172.15,0.1]
[1752736466385,36.94733245,172.16,172.15,0.1]
[1752736466983,40.07766784,172.16,172.15,0.1]
[1752736467482,37.78855018,172.16,172.15,0.1]
[1752736467686,45.88621802,172.16,172.15,0.1]
[1752736467986,40.07766784,172.16,172.15,0.1]
[1752736468485,46.55621802,172.16,172.15,0.1]
[1752736469222,38.45855018,172.16,172.15,0.1]
[1752736469391,40.07766784,172.16,172.15,0.1]
[1752736470162,45.88621802,172.16,172.15,0.1]
[1752736470382,46.55621802,172.16,172.15,0.1]
[1752736470596,46.55621802,172.16,172.08,0.03]
[1752736470597,26.0,172.13,172.08,0.03]
[1752736470760,8.76766784,172.15,172.08,0.03]
[1752736470961,8.09766784,172.11,172.08,0.72]
[1752736471165,8.09766784,172.11,172.09,0.69]
[1752736471368,8.09766784,172.11,172.08,0.03]
[1752736471369,31.98,172.11,172.1,0.69]
[1752736471783,8.59766784,172.16,172.1,14.59817754]
[1752736471993,31.98,172.15,172.11,16.86566784]
[1752736472159,31.98,172.15,172.12,0.69]
[1752736472358,8.76766784,172.14,172.1,5.8105097]
[1752736472566,8.09766784,172.11,172.08,6.53120336]
[1752736472878,8.09766784,172.1,172.09,0.69]
[1752736473602,31.98,172.12,172.09,0.69]
[1752736473809,40.07766784,172.12,172.09,0.69]
[1752736473986,40.07766784,172.12,172.1,0.69]
[1752736474511,8.09766784,172.14,172.11,0.69]
[1752736474808,31.98,172.15,172.11,8.78766784]
[1752736474999,40.07766784,172.16,172.11,8.78766784]
[1752736475301,31.98,172.16,172.12,0.69]
[1752736475477,31.98,172.16,172.13,0.69]
[1752736475674,31.98,172.16,172.14,0.69]
[1752736476004,31.98,172.16,172.15,0.69]
[1752736476183,31.98,172.18,172.15,0.69]
[1752736476508,6.47562255,172.25,172.17,8.09766784]
[1752736476726,40.07766784,172.25,172.2,8.09766784]
[1752736477013,40.07766784,172.25,172.21,8.78766784]
[1752736477014,31.98,172.25,172.21,8.78766784]
[1752736477309,31.98,172.25,172.22,8.78766784]
[1752736477509,40.07766784,172.27,172.23,0.69]
[1752736479605,31.98,172.27,172.23,0.69]
[1752736479903,31.98,172.27,172.24,8.78766784]
[1752736480110,31.98,172.27,172.25,0.69]
[1752736481011,45.88258528,172.27,172.22,6.214]
[1752736481188,45.88258528,172.27,172.21,0.69]
[1752736481189,8.09766784,172.25,172.21,0.69]
[1752736481387,8.09766784,172.25,172.2,13.90479989]
[1752736481388,8.09766784,172.24,172.2,5.80713205]
[1752736481617,40.05766784,172.25,172.21,0.69]
[1752736481927,40.05766784,172.25,172.22,0.69]
[1752736482109,31.96,172.25,172.22,0.69]
[1752736482415,40.05766784,172.25,172.22,0.69]
[1752736484013,31.96,172.25,172.22,0.69]
[1752736484514,31.96,172.25,172.23,0.69]
[1752736485020,40.05766784,172.25,172.21,0.69]
[1752736486015,45.86322993,172.25,172.21,0.69]
[1752736486604,8.09766784,172.24,172.21,0.69]
[1752736486800,40.05766784,172.25,172.21,8.78766784]
[1752736487706,40.05766784,172.25,172.21,0.69]
[1752736489101,36.92335291,172.25,172.21,0.69]
[1752736489407,31.96,172.25,172.23,4.96335291]
[1752736489705,31.94,172.27,172.24,0.69]
[1752736490600,36.90335291,172.27,172.22,11.4597991]
[1752736491929,43.41823815,172.27,172.22,5.65335291]
[1752736492123,5.67335291,172.26,172.19,0.69]
[1752736492425,4.96335291,172.24,172.2,5.80714466]
[1752736492728,4.96335291,172.24,172.2,6.49714466]
[1752736493518,4.96335291,172.25,172.2,11.46049757]
[1752736493726,6.51528353,172.26,172.21,0.69]
[1752736493924,4.96335291,172.25,172.21,0.69]
[1752736495196,4.96335291,172.25,172.2,10.77049757]
[1752736495197,4.96335291,172.24,172.2,5.80714466]
[1752736495403,0.71,172.24,172.19,11.46081049]
[1752736495606,4.96335291,172.25,172.2,5.65335291]
[1752736495811,4.96335291,172.25,172.21,0.69]
[1752736496013,43.41829381,172.27,172.22,5.65335291]
[1752736496503,4.96335291,172.26,172.22,0.69]
[1752736496922,38.4549409,172.27,172.22,0.69]
[1752736496923,37.61335291,172.27,172.22,11.45980253]
[1752736497123,38.45491832,172.27,172.22,11.45980253]
[1752736497426,43.41827123,172.27,172.22,11.45980253]
[1752736498003,43.41827123,172.27,172.22,5.65335291]
[1752736498204,0.71,172.26,172.21,5.80673884]
[1752736498423,0.71,172.26,172.21,11.46009175]
[1752736498610,5.67335291,172.26,172.21,11.46009175]
[1752736498814,0.71,172.26,172.21,6.49673884]
[1752736499016,5.67335291,172.26,172.22,4.96335291]
[1752736499732,5.67335291,172.26,172.22,5.65335291]
[1752736500431,4.96335291,172.26,172.22,5.65335291]
[1752736500634,36.90335291,172.27,172.22,4.96335291]
[1752736500826,148.81,172.3,172.25,4.96335291]
[1752736501033,148.81,172.3,172.25,5.65335291]
[1752736501034,0.71,172.29,172.25,5.65335291]
[1752736501331,153.06335291,172.3,172.26,5.65335291]
[1752736501511,5.67335291,172.29,172.24,6.49564608]
[1752736501710,5.67335291,172.29,172.25,4.96335291]
[1752736501915,5.67335291,172.29,172.25,5.65335291]
[1752736502232,0.71,172.29,172.25,5.65335291]
[1752736502438,11.47754758,172.29,172.25,4.96335291]
[1752736502645,10.76754758,172.29,172.25,4.96335291]
[1752736502811,0.71,172.28,172.25,4.96335291]
[1752736503310,4.96335291,172.29,172.23,2.2407]
[1752736503512,5.67335291,172.27,172.23,6.51405291]
[1752736503732,4.96335291,172.28,172.23,12.32014045]
[1752736503937,4.96335291,172.28,172.24,5.65335291]
[1752736504142,5.67335291,172.29,172.24,5.65335291]
[1752736504636,11.47754486,172.29,172.24,11.45917398]
[1752736505140,10.76754486,172.29,172.24,11.45917398]
[1752736505315,4.96335291,172.27,172.24,0.69]
[1752736505513,5.67335291,172.28,172.23,12.32013707]
[1752736505836,5.67335291,172.28,172.21,14.51689353]
[1752736505837,4.96335291,172.24,172.18,19.6116431]
[1752736506009,4.96335291,172.23,172.19,4.96335291]
[1752736506212,5.67335291,172.24,172.19,5.65335291]
[1752736506423,0.71,172.24,172.19,5.65335291]
[1752736506755,5.67335291,172.24,172.19,5.65335291]
[1752736506916,4.96335291,172.24,172.19,10.7707841]
[1752736507131,29.01792489,172.31,172.24,26.0]
[1752736507132,0.71,172.31,172.24,26.0]
[1752736507331,5.67335291,172.33,172.28,4.96335291]
[1752736507536,0.71,172.32,172.28,4.96335291]
[1752736507925,0.71,172.31,172.28,4.96335291]
[1752736508915,0.71,172.31,172.28,8.08162557]
[1752736509834,0.06,172.34,172.3,8.08162557]
[1752736510223,0.77,172.34,172.3,8.08162557]
[1752736510924,6.57251874,172.34,172.29,6.49404461]
[1752736511251,0.06,172.34,172.3,8.77162557]
[1752736511417,0.77,172.34,172.31,8.08162557]
[1752736511743,0.06,172.34,172.31,8.08162557]
[1752736512341,0.71,172.33,172.27,6.49457208]
[1752736512530,8.08162557,172.31,172.26,8.08162557]
[1752736512711,8.79162557,172.31,172.26,8.08162557]
[1752736512916,14.59521357,172.31,172.26,8.08162557]
[1752736513645,14.59521357,172.31,172.26,13.88672024]
[1752736514144,6.513588,172.31,172.27,8.08162557]
[1752736514938,0.71,172.3,172.25,13.584961]
[1752736515246,8.79162557,172.29,172.25,15.86112557]
[1752736515431,8.79162557,172.29,172.24,26.69]
[1752736515432,8.79162557,172.28,172.24,26.0]
[1752736515626,8.08162557,172.28,172.22,31.84]
[1752736515851,8.08162557,172.27,172.22,65.92162557]
[1752736516021,8.79162557,172.27,172.22,40.61162557]
[1752736516416,0.71,172.3,172.24,8.08162557]
[1752736516721,8.08162557,172.29,172.24,8.08162557]
[1752736516931,14.59606044,172.29,172.24,8.08162557]
[1752736517141,8.79162557,172.28,172.23,8.77162557]
[1752736517340,8.79162557,172.27,172.22,8.08162557]
[1752736517644,8.79162557,172.27,172.22,8.77162557]
[1752736518037,8.08162557,172.27,172.23,0.69]
[1752736518454,8.79162557,172.27,172.23,0.69]
[1752736518634,8.79162557,172.27,172.22,13.88791038]
[1752736518831,8.79162557,172.27,172.22,14.57791038]
[1752736519032,14.59646997,172.27,172.22,14.57791038]
[1752736520154,14.59646997,172.27,172.22,6.49628481]
[1752736520359,8.08162557,172.23,172.17,8.6123]
[1752736520529,8.08162557,172.22,172.17,48.50202818]
[1752736520925,8.79162557,172.22,172.17,48.50202818]
[1752736521126,8.79162557,172.22,172.17,14.42040261]
[1752736521343,8.08162557,172.22,172.19,26.0]
[1752736521550,0.7,172.24,172.19,26.0]
[1752736521741,8.08162557,172.23,172.2,0.67]
[1752736521944,8.08162557,172.23,172.19,34.08162557]
[1752736522126,0.7,172.23,172.19,26.0]
[1752736522325,0.7,172.23,172.19,34.08162557]
[1752736523368,8.78162557,172.23,172.19,26.0]
[1752736523854,8.08162557,172.23,172.19,26.0]
[1752736524064,0.7,172.22,172.19,26.0]
[1752736524864,8.78162557,172.21,172.16,8.75162557]
[1752736525430,0.7,172.2,172.16,8.75162557]
[1752736525632,0.7,172.19,172.15,8.11162557]
[1752736525853,0.7,172.19,172.15,13.92049322]
[1752736526037,13.88891276,172.2,172.15,14.59049322]
[1752736526239,5.80728719,172.2,172.16,8.08162557]
[1752736526766,8.08162557,172.22,172.17,8.75162557]
[1752736526933,0.7,172.22,172.17,0.67]
[1752736527264,0.7,172.22,172.18,8.08162557]
[1752736527961,0.7,172.22,172.15,0.03]
[1752736527962,148.1,172.24,172.21,8.08162557]
[1752736528272,37.60494249,172.27,172.23,8.08162557]
[1752736528572,38.30494249,172.27,172.23,8.08162557]
[1752736529477,32.5,172.27,172.23,8.08162557]
[1752736529853,0.7,172.26,172.23,8.08162557]
[1752736530171,5.80487696,172.27,172.23,8.08162557]
[1752736530556,6.50487696,172.27,172.21,6.47675078]
[1752736530753,6.50487696,172.27,172.23,8.08162557]
[1752736530943,6.50487696,172.27,172.23,4.96175799]
[1752736531441,6.50487696,172.27,172.21,6.47675078]
[1752736531442,37.60407805,172.3,172.26,4.96175799]
[1752736531665,10.76528665,172.31,172.26,4.96175799]
[1752736531885,0.7,172.31,172.28,4.96175799]
[1752736532181,5.80325275,172.32,172.28,4.96175799]
[1752736532354,6.50325275,172.32,172.28,4.96175799]
[1752736532668,0.7,172.31,172.27,4.96175799]
[1752736533063,0.7,172.31,172.27,8.0823009]
[1752736533277,0.06,172.29,172.28,8.0823009]
[1752736533882,0.06,172.29,172.25,32.47517831]
[1752736534075,0.06,172.29,172.28,8.0823009]
[1752736534857,0.06,172.29,172.27,8.0823009]
[1752736535970,0.06,172.29,172.27,0.67]
[1752736536151,0.06,172.29,172.26,5.80510721]
[1752736536482,0.06,172.29,172.27,8.0823009]
[1752736537061,0.06,172.29,172.28,8.0823009]
[1752736537475,0.06,172.29,172.28,8.7523009]
[1752736538453,0.06,172.29,172.28,14.55680519]
[1752736538965,0.06,172.29,172.28,57.34148916]
[1752736539272,0.06,172.29,172.28,32.98238916]
[1752736539979,0.06,172.29,172.28,2.3109]
[1752736540184,0.06,172.29,172.28,90.74238916]
[1752736540385,0.06,172.29,172.28,64.74238916]
[1752736540599,0.06,172.29,172.28,71.33658916]
[1752736542295,0.06,172.34,172.32,26.0]
[1752736542508,0.06,172.34,172.33,8.0823009]
[1752736542676,0.06,172.34,172.33,8.7523009]
[1752736543595,0.06,172.34,172.33,14.55512107]
[1752736544010,0.06,172.34,172.33,31.33980504]
[1752736544900,0.06,172.34,172.33,23.25750414]
[1752736545072,0.06,172.34,172.33,31.33980504]
[1752736545596,0.06,172.34,172.33,23.25750414]
[1752736545810,0.06,172.34,172.33,31.33980504]
[1752736546797,0.06,172.34,172.33,5.80282017]
[1752736547108,0.06,172.34,172.33,8.0823009]
[1752736547305,0.06,172.34,172.33,14.55512107]
[1752736548010,0.06,172.34,172.33,31.33980504]
[1752736548599,0.06,172.34,172.33,63.05980504]
[1752736549098,0.06,172.34,172.33,37.52282017]
[1752736549315,0.06,172.34,172.33,45.60512107]
[1752736549486,0.06,172.34,172.33,46.27512107]
[1752736550079,0.06,172.34,172.33,45.60512107]
[1752736550581,0.06,172.34,172.33,39.8023009]
[1752736550797,0.06,172.34,172.33,45.60512107]
[1752736550998,0.06,172.34,172.33,31.72]
[1752736551207,0.06,172.34,172.33,39.8023009]
[1752736551408,0.78,172.34,172.32,8.0823009]
[1752736552418,0.78,172.34,172.31,8.0823009]
[1752736552579,8.8023009,172.33,172.28,8.0823009]
[1752736552786,8.0823009,172.3,172.26,31.7]
[1752736552980,4.96053248,172.32,172.27,4.96053248]
[1752736553310,0.72,172.3,172.27,4.96053248]
[1752736553695,0.06,172.34,172.3,26.0]
[1752736553886,0.06,172.34,172.29,30.96053248]
[1752736553887,0.06,172.34,172.33,4.96053248]
[1752736554986,0.78,172.34,172.33,4.96053248]
[1752736555183,0.06,172.34,172.33,10.76335265]
[1752736555834,0.06,172.34,172.33,4.96053248]
[1752736556012,0.78,172.34,172.3,30.96053248]
[1752736556214,0.72,172.33,172.3,30.96053248]
[1752736557011,0.72,172.33,172.3,39.8830997]
[1752736557342,0.06,172.34,172.31,13.88265943]
[1752736557815,0.06,172.34,172.31,5.80338989]
[1752736558839,0.06,172.34,172.31,6.49338989]
[1752736559142,0.06,172.34,172.31,38.19338989]
[1752736559830,0.06,172.34,172.33,5.80282017]
[1752736560239,0.06,172.34,172.33,13.88208971]
[1752736561441,0.06,172.34,172.33,8.07926954]
[1752736562119,0.06,172.34,172.33,13.88208971]
[1752736562747,0.06,172.34,172.33,89.05677368]
[1752736571149,0.06,172.34,172.33,80.97750414]
[1752736571349,0.06,172.34,172.33,89.05677368]
[1752736572652,0.06,172.34,172.33,88.55677368]
[1752736573367,0.06,172.34,172.33,62.55677368]
[1752736575155,0.06,172.34,172.33,45.08208971]
[1752736575352,0.06,172.34,172.33,45.77208971]
[1752736576261,0.06,172.34,172.33,62.55677368]
[1752736577182,0.06,172.34,172.33,59.43165043]
[1752736580975,0.78,172.34,172.3,5.80383052]
[1752736581164,0.72,172.33,172.31,36.61414629]
[1752736581365,0.72,172.33,172.32,57.66]
[1752736581578,0.06,172.34,172.32,57.66]
[1752736581579,0.06,172.34,172.32,62.61414629]
[1752736581784,0.06,172.34,172.33,4.95414629]
[1752736582253,0.06,172.34,172.33,10.75696646]
[1752736589767,0.06,172.34,172.33,23.29750414]
[1752736589963,0.06,172.34,172.33,28.25165043]
[1752736590270,0.06,172.34,172.33,10.75696646]
[1752736590953,0.06,172.34,172.33,28.25165043]
[1752736592261,0.06,172.35,172.34,4.95414629]
[1752736592460,0.06,172.35,172.34,63.32414629]
[1752736593177,0.06,172.35,172.34,63.30414629]
[1752736593598,0.06,172.35,172.34,69.10662975]
[1752736595388,0.06,172.36,172.35,42.78468397]
[1752736595591,0.1,172.4,172.35,42.78468397]
[1752736595592,0.1,172.4,172.39,10.7549468]
[1752736595895,0.1,172.4,172.39,42.3949468]
[1752736596096,0.1,172.4,172.39,59.88963077]
[1752736599099,0.1,172.4,172.39,59.17963077]
[1752736600173,0.79,172.4,172.39,4.95414629]
[1752736600492,0.79,172.4,172.38,57.64]
[1752736600895,0.79,172.4,172.38,57.62]
[1752736601715,0.79,172.4,172.36,5.80153584]
[1752736601921,0.79,172.4,172.34,16.81468397]
[1752736601922,5.74414629,172.4,172.37,31.62]
[1752736602200,0.69,172.39,172.36,31.62]
[1752736602592,4.95414629,172.38,172.34,0.03]
[1752736602779,5.64414629,172.37,172.34,31.65]
[1752736603101,7.42749942,172.4,172.34,31.65]
[1752736603102,0.69,172.36,172.34,26.03]
[1752736603303,7.42749942,172.4,172.34,26.03]
[1752736603304,0.69,172.35,172.34,26.03]
[1752736604202,0.69,172.35,172.34,31.83248346]
[1752736604720,0.69,172.35,172.34,26.03]
[1752736605796,0.69,172.35,172.34,0.03]
[1752736606025,5.64414629,172.35,172.34,0.03]
[1752736606594,6.14414629,172.35,172.34,0.03]
[1752736607228,1.19,172.35,172.34,0.03]
[1752736607408,6.14414629,172.35,172.34,0.03]
[1752736608244,11.94629308,172.35,172.34,0.03]
[1752736611723,18.52303937,172.35,172.34,0.03]
[1752736613715,13.56889308,172.35,172.34,0.03]
[1752736615414,8.61474679,172.35,172.34,0.03]
[1752736615633,13.56889308,172.35,172.34,0.03]
[1752736617130,8.61474679,172.35,172.34,0.03]
[1752736617326,13.56889308,172.35,172.34,0.03]
[1752736617716,1.19,172.35,172.34,0.03]
[1752736618232,10.75567944,172.37,172.34,0.03]
[1752736618399,11.47567944,172.37,172.34,0.03]
[1752736618607,0.72,172.36,172.34,0.03]
[1752736619325,5.67414629,172.36,172.34,0.03]
[1752736619527,11.47612474,172.36,172.34,0.03]
[1752736619723,5.67414629,172.35,172.34,0.03]
[1752736619923,6.17414629,172.35,172.34,0.03]
[1752736620330,1.22,172.35,172.34,0.03]
[1752736620525,0.5,172.35,172.34,4.98414629]
[1752736620702,0.5,172.35,172.34,22.42883026]
[1752736621023,0.5,172.35,172.34,84.98297655]
[1752736621216,0.06,172.36,172.35,16.78468397]
[1752736621536,0.06,172.36,172.35,28.20097705]
[1752736622107,0.06,172.36,172.35,33.15512334]
[1752736622314,0.1,172.4,172.39,16.78468397]
[1752736622525,0.1,172.4,172.39,53.31883026]
[1752736622728,0.1,172.4,172.39,53.97883026]
[1752736623738,0.1,172.4,172.39,59.77963077]
[1752736626904,0.1,172.4,172.39,36.53414629]
[1752736627109,0.1,172.4,172.39,62.53414629]
[1752736627515,0.1,172.4,172.39,79.97883026]
[1752736627919,0.1,172.4,172.39,85.77963077]
[1752736628435,0.1,172.4,172.39,59.77963077]
[1752736630222,0.06,172.41,172.4,16.78468397]
[1752736630422,0.06,172.41,172.4,22.39883026]
[1752736632339,0.06,172.41,172.4,28.19929429]
[1752736634142,0.06,172.41,172.4,23.245148]
[1752736634326,0.06,172.41,172.4,28.19929429]
[1752736637744,0.06,172.41,172.4,59.07929429]
[1752736639217,0.06,172.41,172.4,59.73929429]
[1752736642441,0.06,172.41,172.4,59.76929429]
[1752736642827,0.06,172.41,172.4,59.10929429]
[1752736644120,0.06,172.41,172.4,59.78929429]
[1752736644751,5.70414629,172.41,172.4,0.03]
[1752736645444,0.75,172.41,172.4,0.03]
[1752736646639,0.06,172.41,172.4,36.48414629]
[1752736646818,0.06,172.41,172.4,32.21]
[1752736647020,0.06,172.41,172.4,36.48414629]
[1752736647526,0.06,172.41,172.4,42.28461032]
[1752736648355,0.75,172.41,172.4,0.03]
[1752736649649,5.70414629,172.41,172.4,0.03]
[1752736649840,11.50427389,172.41,172.4,0.03]
[1752736651155,6.5501276,172.41,172.4,0.03]
[1752736651370,11.50427389,172.41,172.4,0.03]
[1752736652237,5.70414629,172.41,172.4,0.03]
[1752736652436,0.75,172.41,172.4,0.03]
[1752736653036,11.50427389,172.41,172.4,0.03]
[1752736654240,0.75,172.41,172.4,0.03]
[1752736654661,0.06,172.41,172.4,4.98414629]
[1752736655759,0.06,172.41,172.4,10.78461032]
[1752736656650,0.06,172.41,172.4,42.26461032]
[1752736656982,0.06,172.41,172.4,37.31046403]
[1752736657172,0.06,172.41,172.4,42.26461032]
[1752736657554,0.06,172.41,172.4,36.46414629]
[1752736658071,0.75,172.41,172.4,36.46414629]
[1752736658535,0.75,172.41,172.4,31.51]
[1752736658739,0.75,172.41,172.4,0.03]
[1752736658956,5.70414629,172.41,172.4,0.03]
[1752736659750,0.75,172.41,172.4,0.03]
[1752736662849,0.06,172.41,172.4,0.03]
[1752736663750,0.75,172.41,172.4,0.03]
[1752736663948,0.06,172.41,172.4,0.03]
[1752736664354,0.06,172.41,172.4,10.78461032]
[1752736665154,0.06,172.41,172.4,28.24929429]
[1752736665452,0.06,172.41,172.4,54.24929429]
[1752736666377,0.06,172.42,172.4,35.26178492]
[1752736666572,0.06,172.42,172.41,37.56214629]
[1752736666749,0.06,172.42,172.41,38.24214629]
[1752736666949,0.06,172.42,172.41,69.68214629]
[1752736668074,0.06,172.43,172.41,66.00098931]
[1752736668270,0.06,172.43,172.42,36.58829258]
[1752736668977,0.06,172.43,172.42,42.38808378]
[1752736669481,0.06,172.43,172.42,37.43393749]
[1752736669884,0.1,172.47,172.45,16.78468397]
[1752736670199,0.1,172.52,172.47,16.78468397]
[1752736670359,1e-08,172.48,172.47,53.15883026]
[1752736670673,1e-08,172.48,172.47,53.83883026]
[1752736670851,0.1,172.52,172.47,54.41864124]
[1752736671052,0.1,172.52,172.51,47.73883026]
[1752736671361,0.1,172.52,172.51,79.15883026]
[1752736671575,0.1,172.52,172.51,79.82883026]
[1752736672673,0.1,172.52,172.51,84.78297655]
[1752736672870,0.1,172.52,172.51,90.57974195]
[1752736673380,0.1,172.54,172.53,16.78468397]
[1752736673580,0.1,172.59,172.57,16.78468397]
[1752736673780,0.1,172.59,172.58,79.13883026]
[1752736675282,0.1,172.59,172.58,84.93324444]
[1752736675466,0.76,172.59,172.57,36.35414629]
[1752736675857,0.76,172.59,172.57,4.95414629]
[1752736676060,0.76,172.59,172.56,57.4]
[1752736676263,0.76,172.59,172.56,62.35414629]
[1752736676776,0.76,172.59,172.57,4.95414629]
[1752736677681,0.1,172.59,172.58,36.35414629]
[1752736677979,0.1,172.59,172.57,31.38]
[1752736678186,0.1,172.59,172.56,62.33414629]
[1752736678382,0.66,172.58,172.56,62.33414629]
[1752736678563,0.66,172.58,172.57,4.95414629]
[1752736678764,0.1,172.59,172.57,4.95414629]
[1752736678976,0.1,172.59,172.58,26.0]
[1752736679286,0.76,172.59,172.58,30.95414629]
[1752736679773,0.76,172.59,172.57,4.95414629]
[1752736679973,0.1,172.59,172.58,53.11883026]
[1752736680881,0.76,172.59,172.58,36.33414629]
[1752736681186,0.76,172.59,172.58,36.31414629]
[1752736681972,0.76,172.59,172.55,5.79541347]
[1752736682173,4.95414629,172.58,172.54,22.58036491]
[1752736682374,0.66,172.57,172.56,16.78468397]
[1752736682572,5.61414629,172.57,172.51,16.78468397]
[1752736682770,4.95414629,172.55,172.52,31.36]
[1752736682974,0.66,172.54,172.52,57.36]
[1752736683177,4.95414629,172.55,172.52,57.36]
[1752736683376,0.66,172.53,172.52,26.0]
[1752736683592,0.66,172.53,172.52,57.36]
[1752736684672,0.66,172.53,172.52,26.0]
[1752736684881,0.66,172.53,172.52,57.36]
[1752736686191,0.66,172.53,172.52,31.36]
[1752736687280,0.66,172.52,172.51,31.34]
[1752736687494,0.66,172.54,172.51,31.34]
[1752736687694,4.95414629,172.55,172.51,31.34]
[1752736687995,0.66,172.53,172.51,31.34]
[1752736688795,0.66,172.52,172.51,31.34]
[1752736688986,0.66,172.52,172.5,26.0]
[1752736689190,0.66,172.52,172.51,31.34]
[1752736689388,0.66,172.54,172.51,31.34]
[1752736689591,0.66,172.53,172.51,31.34]
[1752736690277,0.66,172.52,172.51,31.34]
[1752736690595,5.61414629,172.52,172.47,10.7522561]
[1752736690894,0.66,172.51,172.48,26.0]
[1752736691205,0.66,172.5,172.49,57.34]
[1752736691999,0.66,172.5,172.49,31.34]
[1752736693372,0.66,172.54,172.49,36.29414629]
[1752736693578,0.66,172.53,172.5,4.95414629]
[1752736694198,0.66,172.52,172.51,31.32]
[1752736694585,0.66,172.52,172.48,10.75191994]
[1752736694786,0.66,172.51,172.49,31.32]
[1752736695586,0.66,172.53,172.49,42.0715242]
[1752736695903,0.66,172.52,172.49,42.0715242]
[1752736697707,0.66,172.52,172.49,31.32]
[1752736697915,0.66,172.51,172.49,31.32]
[1752736698387,0.66,172.53,172.5,31.32]
[1752736698585,0.66,172.52,172.5,31.32]
[1752736699108,0.66,172.52,172.5,31.3]
[1752736699311,10.75035218,172.53,172.5,31.3]
[1752736699486,0.66,172.51,172.5,31.3]
[1752736700082,5.61414629,172.51,172.48,31.3]
[1752736700386,0.66,172.5,172.48,31.3]
[1752736701300,0.66,172.49,172.47,26.0]
[1752736701507,0.69,172.48,172.47,26.0]
[1752736702282,0.69,172.5,172.47,26.0]
[1752736703806,4.95414629,172.51,172.47,26.0]
[1752736703997,0.69,172.49,172.47,26.0]
[1752736705115,0.69,172.49,172.47,31.79799065]
[1752736705322,0.69,172.49,172.47,26.0]
[1752736706010,4.95414629,172.5,172.47,57.28]
[1752736706227,0.69,172.48,172.47,26.0]
[1752736707018,5.64414629,172.5,172.47,26.0]
[1752736707208,10.75095053,172.51,172.47,26.0]
[1752736707414,0.69,172.49,172.47,26.0]
[1752736708224,0.69,172.49,172.47,26.03]
[1752736708521,0.69,172.49,172.47,31.8280893]
[1752736708711,0.69,172.49,172.47,0.03]
[1752736708712,0.69,172.48,172.47,0.03]
[1752736710822,6.0917,172.52,172.47,36.96414629]
[1752736710823,0.69,172.52,172.47,36.96414629]
[1752736711012,0.69,172.51,172.47,32.01]
[1752736711215,0.69,172.51,172.47,31.31]